{"text_format":"3","workbook":"xlsx","n_sheets":7,"sheets":["Monday","Tuesday","Wednesday","Thursday","Friday","Saturday","Sunday"],"not_rendered":{"defined_names":24},"read":"whole","date_system":"1900"}

{"sheet":"Monday","index":0,"n_rows":10,"n_cols":13,"rows_kept":10,"merged":[[1,1,2,1],[1,2,1,10],[1,11,1,12],[2,2,2,10],[2,11,2,12]]}
[null,"SHIFT SCHEDULE"]
[null,"MONDAY","For the Week of: ",{"$nulls":8},"DATE"]
[null,null,"Department Name: ",{"$nulls":8},"DEPARTMENT"]
[null,"Employee Name","7:00 AM","8:00 AM","9:00 AM","10:00 AM","11:00 AM","12:00 PM","1:00 PM","2:00 PM","3:00 PM","Sick?","TOTAL"]
[null,"Kelly F","manager","manager","manager","manager","manager","manager","manager","manager","manager",null,{"$f":"IFERROR(COUNTIF(Monday[[#This Row],[7:00 AM]:[3:00 PM]],\"*\"),\"\")","v":9}]
[null,"Tom Y",null,"cashier","cashier","cashier","cashier",{"$nulls":5},{"$f":"IFERROR(COUNTIF(Monday[[#This Row],[7:00 AM]:[3:00 PM]],\"*\"),\"\")","v":4}]
[null,"James S",null,"front desk","front desk","front desk","front desk ","front desk","front desk","front desk",null,null,{"$f":"IFERROR(COUNTIF(Monday[[#This Row],[7:00 AM]:[3:00 PM]],\"*\"),\"\")","v":7}]
[null,"Jon M",null,"front desk","front desk","front desk","front desk ","front desk","front desk","front desk",null,null,{"$f":"IFERROR(COUNTIF(Monday[[#This Row],[7:00 AM]:[3:00 PM]],\"*\"),\"\")","v":7}]
[null,"Sean P",{"$nulls":10},{"$f":"IFERROR(COUNTIF(Monday[[#This Row],[7:00 AM]:[3:00 PM]],\"*\"),\"\")","v":0}]
[null,"Teresa A",{"$nulls":5},"cashier","cashier","cashier","cashier",null,{"$f":"IFERROR(COUNTIF(Monday[[#This Row],[7:00 AM]:[3:00 PM]],\"*\"),\"\")","v":4}]

{"sheet":"Tuesday","index":1,"n_rows":10,"n_cols":13,"rows_kept":10,"merged":[[1,1,2,1],[1,2,1,10],[1,11,1,12],[2,2,2,10],[2,11,2,12]]}
[null,{"$f":"SHIFT_SCHEDULE_Title","v":"SHIFT SCHEDULE"}]
[null,"TUESDAY","For the Week of: ",{"$nulls":8},{"$f":"DATE","v":"DATE"}]
[null,null,"Department Name: ",{"$nulls":8},{"$f":"DEPARTMENT","v":"DEPARTMENT"}]
[null,"Employee Name","7:00 AM","8:00 AM","9:00 AM","10:00 AM","11:00 AM","12:00 PM","1:00 PM","2:00 PM","3:00 PM","Sick?","TOTAL"]
[null,"Kelly F","manager","manager","manager","manager","manager","manager","manager","manager","manager",null,{"$f":"IFERROR(COUNTIF(Tuesday[[#This Row],[7:00 AM]:[3:00 PM]],\"*\"),\"\")","v":9}]
[null,"Tom Y",null,"cashier","cashier","cashier","cashier",{"$nulls":5},{"$f":"IFERROR(COUNTIF(Tuesday[[#This Row],[7:00 AM]:[3:00 PM]],\"*\"),\"\")","v":4}]
[null,"James S",null,"front desk","front desk","front desk","front desk ","front desk","front desk","front desk",null,null,{"$f":"IFERROR(COUNTIF(Tuesday[[#This Row],[7:00 AM]:[3:00 PM]],\"*\"),\"\")","v":7}]
[null,"Jon M",null,"front desk","front desk","front desk","front desk ","front desk","front desk","front desk",null,null,{"$f":"IFERROR(COUNTIF(Tuesday[[#This Row],[7:00 AM]:[3:00 PM]],\"*\"),\"\")","v":7}]
[null,"Sean P",{"$nulls":9},"Sick",{"$f":"IFERROR(COUNTIF(Tuesday[[#This Row],[7:00 AM]:[3:00 PM]],\"*\"),\"\")","v":0}]
[null,"Teresa A",{"$nulls":5},"cashier","cashier","cashier","cashier",null,{"$f":"IFERROR(COUNTIF(Tuesday[[#This Row],[7:00 AM]:[3:00 PM]],\"*\"),\"\")","v":4}]

{"sheet":"Wednesday","index":2,"n_rows":10,"n_cols":13,"rows_kept":10,"merged":[[1,1,2,1],[1,2,1,10],[1,11,1,12],[2,2,2,10],[2,11,2,12]]}
[null,{"$f":"SHIFT_SCHEDULE_Title","v":"SHIFT SCHEDULE"}]
[null,"WEDNESDAY","For the Week of: ",{"$nulls":8},{"$f":"DATE","v":"DATE"}]
[null,null,"Department Name: ",{"$nulls":8},{"$f":"DEPARTMENT","v":"DEPARTMENT"}]
[null,"Employee Name","7:00 AM","8:00 AM","9:00 AM","10:00 AM","11:00 AM","12:00 PM","1:00 PM","2:00 PM","3:00 PM","Sick?","TOTAL"]
[null,"Kelly F","manager","manager","manager","manager","manager","manager","manager","manager","manager",null,{"$f":"IFERROR(COUNTIF(Wednesday[[#This Row],[7:00 AM]:[3:00 PM]],\"*\"),\"\")","v":9}]
[null,"Tom Y",null,"cashier","cashier","cashier","cashier",{"$nulls":5},{"$f":"IFERROR(COUNTIF(Wednesday[[#This Row],[7:00 AM]:[3:00 PM]],\"*\"),\"\")","v":4}]
[null,"James S",null,"front desk","front desk","front desk","front desk ","front desk","front desk","front desk",null,null,{"$f":"IFERROR(COUNTIF(Wednesday[[#This Row],[7:00 AM]:[3:00 PM]],\"*\"),\"\")","v":7}]
[null,"Jon M",null,"front desk","front desk","front desk","front desk ","front desk","front desk","front desk",null,null,{"$f":"IFERROR(COUNTIF(Wednesday[[#This Row],[7:00 AM]:[3:00 PM]],\"*\"),\"\")","v":7}]
[null,"Sean P",{"$nulls":9},"Sick",{"$f":"IFERROR(COUNTIF(Wednesday[[#This Row],[7:00 AM]:[3:00 PM]],\"*\"),\"\")","v":0}]
[null,"Teresa A",{"$nulls":5},"cashier","cashier","cashier","cashier",null,{"$f":"IFERROR(COUNTIF(Wednesday[[#This Row],[7:00 AM]:[3:00 PM]],\"*\"),\"\")","v":4}]

{"sheet":"Thursday","index":3,"n_rows":10,"n_cols":13,"rows_kept":10,"merged":[[1,1,2,1],[1,2,1,10],[1,11,1,12],[2,2,2,10],[2,11,2,12]]}
[null,{"$f":"SHIFT_SCHEDULE_Title","v":"SHIFT SCHEDULE"}]
[null,"THURSDAY","For the Week of: ",{"$nulls":8},{"$f":"DATE","v":"DATE"}]
[null,null,"Department Name: ",{"$nulls":8},{"$f":"DEPARTMENT","v":"DEPARTMENT"}]
[null,"Employee Name","7:00 AM","8:00 AM","9:00 AM","10:00 AM","11:00 AM","12:00 PM","1:00 PM","2:00 PM","3:00 PM","Sick?","TOTAL"]
[null,"Kelly F","manager","manager","manager","manager","manager","manager","manager","manager","manager",null,{"$f":"IFERROR(COUNTIF(Thursday[[#This Row],[7:00 AM]:[3:00 PM]],\"*\"),\"\")","v":9}]
[null,"Tom Y",null,"cashier","cashier","cashier","cashier",{"$nulls":5},{"$f":"IFERROR(COUNTIF(Thursday[[#This Row],[7:00 AM]:[3:00 PM]],\"*\"),\"\")","v":4}]
[null,"James S",null,"front desk","front desk","front desk","front desk ","front desk","front desk","front desk",null,null,{"$f":"IFERROR(COUNTIF(Thursday[[#This Row],[7:00 AM]:[3:00 PM]],\"*\"),\"\")","v":7}]
[null,"Jon M",null,"front desk","front desk","front desk","front desk ","front desk","front desk","front desk",null,null,{"$f":"IFERROR(COUNTIF(Thursday[[#This Row],[7:00 AM]:[3:00 PM]],\"*\"),\"\")","v":7}]
[null,"Sean P",{"$nulls":9},"Sick",{"$f":"IFERROR(COUNTIF(Thursday[[#This Row],[7:00 AM]:[3:00 PM]],\"*\"),\"\")","v":0}]
[null,"Teresa A",{"$nulls":5},"cashier","cashier","cashier","cashier",null,{"$f":"IFERROR(COUNTIF(Thursday[[#This Row],[7:00 AM]:[3:00 PM]],\"*\"),\"\")","v":4}]

{"sheet":"Friday","index":4,"n_rows":10,"n_cols":13,"rows_kept":10,"merged":[[1,1,2,1],[1,2,1,10],[1,11,1,12],[2,2,2,10],[2,11,2,12]]}
[null,{"$f":"SHIFT_SCHEDULE_Title","v":"SHIFT SCHEDULE"}]
[null,"FRIDAY","For the Week of: ",{"$nulls":8},{"$f":"DATE","v":"DATE"}]
[null,null,"Department Name: ",{"$nulls":8},{"$f":"DEPARTMENT","v":"DEPARTMENT"}]
[null,"Employee Name","7:00 AM","8:00 AM","9:00 AM","10:00 AM","11:00 AM","12:00 PM","1:00 PM","2:00 PM","3:00 PM","Sick?","TOTAL"]
[null,"Kelly F","manager","manager","manager","manager","manager","manager","manager","manager","manager",null,{"$f":"IFERROR(COUNTIF(Friday[[#This Row],[7:00 AM]:[3:00 PM]],\"*\"),\"\")","v":9}]
[null,"Tom Y",null,"cashier","cashier","cashier","cashier",{"$nulls":5},{"$f":"IFERROR(COUNTIF(Friday[[#This Row],[7:00 AM]:[3:00 PM]],\"*\"),\"\")","v":4}]
[null,"James S",null,"front desk","front desk","front desk","front desk ","front desk","front desk","front desk",null,null,{"$f":"IFERROR(COUNTIF(Friday[[#This Row],[7:00 AM]:[3:00 PM]],\"*\"),\"\")","v":7}]
[null,"Jon M",null,"front desk","front desk","front desk","front desk ","front desk","front desk","front desk",null,null,{"$f":"IFERROR(COUNTIF(Friday[[#This Row],[7:00 AM]:[3:00 PM]],\"*\"),\"\")","v":7}]
[null,"Sean P",{"$nulls":9},"Sick",{"$f":"IFERROR(COUNTIF(Friday[[#This Row],[7:00 AM]:[3:00 PM]],\"*\"),\"\")","v":0}]
[null,"Teresa A",{"$nulls":5},"cashier","cashier","cashier","cashier",null,{"$f":"IFERROR(COUNTIF(Friday[[#This Row],[7:00 AM]:[3:00 PM]],\"*\"),\"\")","v":4}]

{"sheet":"Saturday","index":5,"n_rows":10,"n_cols":13,"rows_kept":10,"merged":[[1,1,2,1],[1,2,1,10],[1,11,1,12],[2,2,2,10],[2,11,2,12]]}
[null,{"$f":"SHIFT_SCHEDULE_Title","v":"SHIFT SCHEDULE"}]
[null,"SATURDAY","For the Week of: ",{"$nulls":8},{"$f":"DATE","v":"DATE"}]
[null,null,"Department Name: ",{"$nulls":8},{"$f":"DEPARTMENT","v":"DEPARTMENT"}]
[null,"Employee Name","7:00 AM","8:00 AM","9:00 AM","10:00 AM","11:00 AM","12:00 PM","1:00 PM","2:00 PM","3:00 PM","Sick?","TOTAL"]
[null,"Kelly F","manager","manager","manager","manager","manager","manager","manager","manager","manager",null,{"$f":"IFERROR(COUNTIF(Saturday[[#This Row],[7:00 AM]:[3:00 PM]],\"*\"),\"\")","v":9}]
[null,"Tom Y",null,"cashier","cashier","cashier","cashier",{"$nulls":5},{"$f":"IFERROR(COUNTIF(Saturday[[#This Row],[7:00 AM]:[3:00 PM]],\"*\"),\"\")","v":4}]
[null,"James S",null,"front desk","front desk","front desk","front desk ","front desk","front desk","front desk",null,null,{"$f":"IFERROR(COUNTIF(Saturday[[#This Row],[7:00 AM]:[3:00 PM]],\"*\"),\"\")","v":7}]
[null,"Jon M",null,"front desk","front desk","front desk","front desk ","front desk","front desk","front desk",null,null,{"$f":"IFERROR(COUNTIF(Saturday[[#This Row],[7:00 AM]:[3:00 PM]],\"*\"),\"\")","v":7}]
[null,"Sean P",{"$nulls":9},"Sick",{"$f":"IFERROR(COUNTIF(Saturday[[#This Row],[7:00 AM]:[3:00 PM]],\"*\"),\"\")","v":0}]
[null,"Teresa A",{"$nulls":5},"cashier","cashier","cashier","cashier",null,{"$f":"IFERROR(COUNTIF(Saturday[[#This Row],[7:00 AM]:[3:00 PM]],\"*\"),\"\")","v":4}]

{"sheet":"Sunday","index":6,"n_rows":10,"n_cols":13,"rows_kept":10,"merged":[[1,1,2,1],[1,2,1,10],[1,11,1,12],[2,2,2,10],[2,11,2,12]]}
[null,{"$f":"SHIFT_SCHEDULE_Title","v":"SHIFT SCHEDULE"}]
[null,"SUNDAY","For the Week of: ",{"$nulls":8},{"$f":"DATE","v":"DATE"}]
[null,null,"Department Name: ",{"$nulls":8},{"$f":"DEPARTMENT","v":"DEPARTMENT"}]
[null,"Employee Name","7:00 AM","8:00 AM","9:00 AM","10:00 AM","11:00 AM","12:00 PM","1:00 PM","2:00 PM","3:00 PM","Sick?","TOTAL"]
[null,"Kelly F","manager","manager","manager","manager","manager","manager","manager","manager","manager",null,{"$f":"IFERROR(COUNTIF(Sunday[[#This Row],[7:00 AM]:[3:00 PM]],\"*\"),\"\")","v":9}]
[null,"Tom Y",null,"cashier","cashier","cashier","cashier",{"$nulls":5},{"$f":"IFERROR(COUNTIF(Sunday[[#This Row],[7:00 AM]:[3:00 PM]],\"*\"),\"\")","v":4}]
[null,"James S",null,"front desk","front desk","front desk","front desk ","front desk","front desk","front desk",null,null,{"$f":"IFERROR(COUNTIF(Sunday[[#This Row],[7:00 AM]:[3:00 PM]],\"*\"),\"\")","v":7}]
[null,"Jon M",null,"front desk","front desk","front desk","front desk ","front desk","front desk","front desk",null,null,{"$f":"IFERROR(COUNTIF(Sunday[[#This Row],[7:00 AM]:[3:00 PM]],\"*\"),\"\")","v":7}]
[null,"Sean P",{"$nulls":9},"Sick",{"$f":"IFERROR(COUNTIF(Sunday[[#This Row],[7:00 AM]:[3:00 PM]],\"*\"),\"\")","v":0}]
[null,"Teresa A",{"$nulls":5},"cashier","cashier","cashier","cashier",null,{"$f":"IFERROR(COUNTIF(Sunday[[#This Row],[7:00 AM]:[3:00 PM]],\"*\"),\"\")","v":4}]